fUSD/lending_fUSD_20260324
["ID","MTS","AMOUNT","RATE_DAILY","PERIOD"]
[408836493,1774338689483,-2554.76,0.00041369,120]
[408836494,1774338689493,-659.65,0.00041369,120]
[408836495,1774338689502,-976.45,0.00041369,120]
[408836496,1774338689511,-500.0,0.00041369,120]
[408836497,1774338689521,-1204.77,0.00041369,120]
[408836498,1774338689530,-534.01,0.00041369,120]
[408836499,1774338689540,-500.0,0.00041369,30]
[408836500,1774338689549,-1000.85,0.00041369,120]
[408836501,1774338689558,-500.0,0.00041369,120]
[408836502,1774338689568,-618.78,0.00041369,120]
[408836503,1774338689578,-500.0,0.00041369,120]
[408836504,1774338689589,-500.0,0.00041369,120]
[408836505,1774338689599,-758.91,0.00041369,120]
[408836506,1774338689609,-500.0,0.00041369,120]
[408836507,1774338689618,-500.0,0.00041369,120]
[408836508,1774338689628,-500.0,0.00041369,120]
[408836509,1774338689637,-500.0,0.00041369,120]
[408836510,1774338689647,-1087.07,0.00041369,120]
[408836511,1774338689656,-500.0,0.00041369,120]
[408836512,1774338689665,-861.35,0.00041369,120]
[408836513,1774338689675,-639.53,0.00041369,120]
[408836514,1774338689684,-500.0,0.00041369,120]
[408836515,1774338689693,-500.0,0.00041369,120]
[408836516,1774338689703,-964.47,0.00041369,120]
[408836517,1774338689712,-1790.64,0.00041369,120]
[408836518,1774338689722,-500.0,0.00041369,120]
[408836519,1774338689731,-500.0,0.00041369,120]
[408836520,1774338689740,-370.25,0.00041369,120]
[408836521,1774338689749,-1377.48,0.00041369,120]
[408836522,1774338689759,-500.0,0.00041369,120]
[408836523,1774338689768,-500.0,0.00041369,120]
[408836524,1774338689777,-817.12,0.00041369,120]
[408836525,1774338689787,-1048.96,0.00041369,120]
[408836526,1774338689795,-500.0,0.00041369,120]
[408836527,1774338689805,-617.31,0.00041369,120]
[408836528,1774338689814,-1373.09,0.00041369,120]
[408836529,1774338689824,-950.57,0.00041369,120]
[408836530,1774338689833,-500.0,0.00041369,120]
[408836531,1774338689842,-500.0,0.00041369,120]
[408836532,1774338689851,-500.0,0.00041369,120]
[408836533,1774338689861,-658.92,0.00041369,120]
[408836534,1774338689870,-500.0,0.00041369,120]
[408836535,1774338689879,-1252.8,0.00041369,120]
[408836536,1774338689888,-500.0,0.00041369,120]
[408836537,1774338689897,-3697.72,0.00041369,2]
[408836538,1774338689906,-500.0,0.00041369,120]
[408836539,1774338689915,-500.0,0.00041369,120]
[408836540,1774338689924,-1527.96,0.00041369,120]
[408836541,1774338689933,-500.0,0.00041369,2]
[408836542,1774338689943,-500.0,0.00041369,120]
[408836543,1774338689951,-589.22,0.00041369,120]
[408836544,1774338689961,-500.0,0.00041369,120]
[408836545,1774338689970,-500.0,0.00041369,120]
[408836546,1774338689979,-500.0,0.00041369,120]
[408836547,1774338689988,-541.68,0.00041369,120]
[408836548,1774338689999,-641.73,0.00041369,120]
[408836549,1774338690008,-1047.63,0.00041369,120]
[408836550,1774338690017,-570.14,0.00041369,120]
[408836551,1774338690027,-500.0,0.00041369,120]
[408836552,1774338690036,-166.41652065,0.00041369,120]
[408836553,1774338690046,-516.11,0.00041369,120]
[408836554,1774338690055,-500.0,0.00041369,120]
[408836555,1774338690065,-1329.81,0.00041369,120]
[408836556,1774338690074,-500.0,0.00041369,120]
[408836557,1774338690083,-500.0,0.00041369,120]
[408836558,1774338690092,-500.0,0.00041369,30]
[408836559,1774338690102,-2000.22,0.00041369,120]
[408836560,1774338690112,-500.0,0.00041369,120]
[408836561,1774338690121,-1988.85,0.00041369,120]
[408836562,1774338690130,-500.0,0.00041369,120]
[408836563,1774338690140,-519.0442896,0.00041369,120]
[408836564,1774338690149,-500.0,0.00041369,120]
[408836565,1774338690158,-500.0,0.00041369,35]
[408836566,1774338690167,-627.92,0.00041369,120]
[408836567,1774338690177,-500.0,0.00041369,120]
[408836568,1774338690186,-500.0,0.00041369,120]
[408836569,1774338690196,-500.0,0.00041369,120]
[408836570,1774338690305,-2821.24,0.00041369,120]
[408836571,1774338690315,-500.0,0.00041369,90]
[408836572,1774338690324,-500.0,0.00041369,120]
[408836573,1774338690333,-596.84839574,0.00041369,90]
[408836574,1774338690342,-500.0,0.00041369,120]
[408836575,1774338690352,-819.97,0.00041369,120]
[408836576,1774338690362,-688.15,0.00041369,120]
[408836577,1774338690373,-500.0,0.00041369,120]
[408836578,1774338690382,-1590.35,0.00041369,120]
[408836579,1774338690391,-500.0,0.00041369,120]
[408836580,1774338690400,-1024.12,0.00041369,120]
[408836581,1774338690409,-500.0,0.00041369,120]
[408836582,1774338690417,-500.0,0.00041369,120]
[408836583,1774338690427,-1947.88,0.00041369,120]
[408836584,1774338690436,-500.0,0.00041369,120]
[408836585,1774338690445,-500.0,0.00041369,120]
[408836586,1774338690454,-500.0,0.00041369,120]
[408836587,1774338690463,-245.50402558,0.00041369,120]
[408836588,1774338690471,-659.88,0.00041369,120]
[408836589,1774338690480,-810.31,0.00041369,120]
[408836590,1774338690490,-500.0,0.00041369,120]
[408836591,1774338690499,-4167.56,0.00041369,14]
[408836592,1774338690508,-787.69,0.00041369,120]
[408836593,1774338690518,-500.0,0.00041369,120]
[408836594,1774338690527,-515.79,0.00041369,120]
[408836595,1774338690536,-698.8,0.00041369,120]
[408836596,1774338690546,-653.93,0.00041369,120]
[408836597,1774338690554,-866.06,0.00041369,120]
[408836598,1774338690564,-2147.96,0.00041369,120]
[408836599,1774338690574,-936.69,0.00041369,120]
[408836600,1774338690583,-500.0,0.00041369,120]
[408836601,1774338690592,-627.57,0.00041369,120]
[408836602,1774338690601,-500.0,0.00041369,120]
[408836603,1774338690610,-898.82,0.00041369,120]
[408836604,1774338690620,-1680.93,0.00041369,120]
[408836605,1774338690629,-500.0,0.00041369,120]
[408836606,1774338690638,-500.0,0.00041369,120]
[408836607,1774338690648,-516.86,0.00041369,120]
[408836608,1774338690658,-1731.35,0.00041369,120]
[408836609,1774338690667,-570.78,0.00041369,120]
[408836610,1774338690676,-1894.96,0.00041369,120]
[408836611,1774338690686,-500.0,0.00041369,120]
[408836612,1774338690695,-500.0,0.00041369,120]
[408836613,1774338690705,-500.0,0.00041369,120]
[408836614,1774338690714,-833.21,0.00041369,120]
[408836615,1774338690723,-500.0,0.00041369,120]
[408836616,1774338690733,-500.0,0.00041369,120]
[408836617,1774338690742,-678.17,0.00041369,120]
[408836618,1774338690751,-500.0,0.00041369,120]
[408836619,1774338690760,-1154.53,0.00041369,120]
[408836620,1774338690769,-532.48,0.00041369,120]
[408836621,1774338690779,-500.0,0.00041369,120]
[408836622,1774338690788,-1168.04,0.00041369,120]
[408836623,1774338690797,-500.0,0.00041369,120]
[408836624,1774338690806,-1084.15,0.00041369,120]
[408836625,1774338690815,-500.0,0.00041369,120]
[408836626,1774338690825,-1543.41,0.00041369,120]
[408836627,1774338690836,-507.54,0.00041369,60]
[408836628,1774338690847,-524.04,0.00041369,120]
[408836629,1774338690857,-1735.5,0.00041369,120]
[408836630,1774338690867,-528.45,0.00041369,120]
[408836631,1774338690876,-500.0,0.00041369,120]
[408836632,1774338690888,-500.0,0.00041369,120]
[408836633,1774338690898,-500.0,0.00041369,120]
[408836634,1774338690908,-500.0,0.00041369,120]
[408836635,1774338690917,-1522.45,0.00041369,120]
[408836636,1774338690926,-500.0,0.00041369,120]
[408836637,1774338690935,-500.0,0.00041369,120]
[408836638,1774338690944,-1728.67,0.00041369,120]
[408836639,1774338690954,-1193.94,0.00041369,120]
[408836640,1774338690963,-2483.59,0.00041369,120]
[408836641,1774338690973,-642.45999813,0.00041369,120]
[408836642,1774338690984,-500.0,0.00041369,120]
[408836643,1774338690995,-183.22933154,0.00041369,120]
[408836644,1774338691006,-500.0,0.00041369,120]
[408836645,1774338691016,-500.0,0.00041369,120]
[408836646,1774338691028,-1145.4,0.00041369,120]
[408836647,1774338691040,-500.0,0.00041369,120]
[408836648,1774338691050,-500.0,0.00041369,120]
[408836649,1774338691062,-500.0,0.00041369,120]
[408836650,1774338691071,-500.0,0.00041369,120]
[408836651,1774338691081,-785.33,0.00041369,120]
[408836652,1774338691090,-500.0,0.00041369,120]
[408836653,1774338691100,-500.0,0.00041369,120]
[408836654,1774338691109,-258.74100089,0.00041369,120]
[408836655,1774338691118,-500.0,0.00041369,120]
[408836656,1774338691128,-500.0,0.00041369,120]
[408836657,1774338691137,-773.31,0.00041369,120]
[408836658,1774338691146,-802.88,0.00041369,120]
[408836659,1774338691156,-504.31,0.00041369,120]
[408836660,1774338691166,-500.0,0.00041369,120]
[408836661,1774338691175,-177.66743326,0.00041369,120]
[408836662,1774338691185,-1766.83,0.00041369,120]
[408836663,1774338691194,-500.0,0.00041369,120]
[408836664,1774338691203,-766.14,0.00041369,120]
[408836665,1774338691213,-500.0,0.00041369,120]
[408836666,1774338691222,-244.83438669,0.00041369,120]
[408836667,1774338691231,-500.0,0.00041369,120]
[408836668,1774338691241,-500.0,0.00041369,120]
[408836669,1774338691250,-655.33,0.00041369,120]
[408836670,1774338691259,-500.0,0.00041369,120]
[408836671,1774338691268,-8117.29,0.00041369,120]
[408836672,1774338691278,-500.0,0.00041369,120]
[408836673,1774338691287,-445.08595032,0.00041369,120]
[408836674,1774338691297,-1429.82,0.00041369,120]
[408836675,1774338691306,-500.0,0.00041369,120]
[408836676,1774338691315,-500.0,0.00041369,120]
[408836677,1774338691324,-500.0,0.00041369,120]
[408836678,1774338691334,-500.0,0.00041369,120]
[408836679,1774338691343,-500.0,0.00041369,120]
[408836680,1774338691353,-1503.53,0.00041369,120]
[408836681,1774338691369,-500.0,0.00041369,120]
[408836682,1774338691380,-1630.29,0.00041369,120]
[408836683,1774338691389,-500.0,0.00041369,120]
[408836684,1774338691399,-841.35,0.00041369,120]
[408836685,1774338691408,-500.0,0.00041369,120]
[408836686,1774338691419,-680.83,0.00041369,120]
[408836687,1774338691428,-673.28,0.00041369,120]
[408836688,1774338691437,-1387.91,0.00041369,120]
[408836689,1774338691447,-500.0,0.00041369,120]
[408836690,1774338691457,-500.0,0.00041369,2]
[408836691,1774338691466,-500.0,0.00041369,7]
[408836692,1774338691476,-500.0,0.00041369,120]
[408836693,1774338691486,-1280.15,0.00041369,120]
[408836694,1774338691495,-604.72,0.00041369,120]
[408836695,1774338691505,-1687.32,0.00041369,120]
[408836696,1774338691515,-553.79,0.00041369,120]
[408836697,1774338691526,-500.0,0.00041369,120]
[408836698,1774338691535,-500.0,0.00041369,120]
[408836699,1774338691546,-500.0,0.00041369,120]
[408836700,1774338691555,-500.0,0.00041369,120]
[408836701,1774338691565,-500.0,0.00041369,7]
[408836702,1774338691575,-500.0,0.00041369,120]
[408836703,1774338691586,-583.19,0.00041369,120]
[408836704,1774338691598,-500.0,0.00041369,120]
[408836705,1774338691607,-500.0,0.00041369,120]
[408836706,1774338691616,-500.0,0.00041369,120]
[408836707,1774338691626,-765.82,0.00041369,120]
[408836708,1774338691635,-500.0,0.00041369,120]
[408836709,1774338691644,-500.0,0.00041369,120]
[408836710,1774338691653,-500.0,0.00041369,120]
[408836711,1774338691663,-500.0,0.00041369,120]
[408836712,1774338691672,-2264.25,0.00041369,120]
[408836713,1774338691681,-500.0,0.00041369,120]
[408836714,1774338691690,-1037.3,0.00041369,30]
[408836715,1774338691699,-2339.0,0.00041369,120]
[408836716,1774338691709,-1084.43,0.00041369,120]
[408836717,1774338691718,-1021.05,0.00041369,120]
[408836718,1774338691728,-602.59,0.00041369,120]
[408836719,1774338691737,-500.0,0.00041369,120]
[408836720,1774338691746,-1040.73,0.00041369,120]
[408836721,1774338691755,-500.0,0.00041369,120]
[408836722,1774338691764,-500.0,0.00041369,120]
[408836723,1774338691773,-851.46,0.00041369,120]
[408836724,1774338691782,-1082.75,0.00041369,120]
[408836725,1774338691792,-1633.66,0.00041369,120]
[408836726,1774338691801,-4460.36,0.00041369,120]
[408836727,1774338691810,-500.0,0.00041369,120]
[408836728,1774338691819,-241.0590899,0.00041369,120]
[408836729,1774338691828,-1090.06,0.00041369,120]
[408836730,1774338691837,-1298.83,0.00041369,120]
[408836731,1774338691848,-500.0,0.00041369,120]
[408836732,1774338691857,-192.69616799,0.00041369,120]
[408836733,1774338691866,-545.35,0.00041369,120]
[408836734,1774338691875,-238.44938563,0.00041369,120]
[408836735,1774338691884,-1399.28,0.00041369,120]
[408836736,1774338691893,-911.41,0.00041369,120]
[408836737,1774338691902,-254.98139746,0.00041369,120]
[408836738,1774338691911,-274.32668158,0.00041369,2]
[408836739,1774338691920,-4326.06,0.00041369,120]
[408836740,1774338691929,-637.83,0.00041369,120]
[408836741,1774338691939,-500.0,0.00041369,14]
[408836742,1774338691948,-863.52,0.00041369,60]
[408836743,1774338691957,-500.0,0.00041369,120]
[408836744,1774338691966,-500.0,0.00041369,120]
[408836745,1774338691975,-521.47,0.00041369,120]
[408836746,1774338691985,-1041.22,0.00041369,120]
[408836747,1774338691994,-500.0,0.00041369,120]
[408836748,1774338692003,-500.0,0.00041369,120]
[408836749,1774338692012,-500.0,0.00041369,120]
[408836750,1774338692022,-711.52,0.00041369,120]
[408836751,1774338692031,-2031.81,0.00041369,120]
[408836752,1774338692042,-790.74,0.00041369,120]
[408836753,1774338692051,-1067.59,0.00041369,120]
[408836754,1774338692060,-500.0,0.00041369,120]
[408836755,1774338692070,-500.0,0.00041369,120]
[408836756,1774338692079,-500.0,0.00041369,120]
[408836757,1774338692088,-1560.13,0.00041369,120]
[408836758,1774338692097,-1154.84,0.00041369,120]
[408836759,1774338692107,-500.0,0.00041369,120]
[408836760,1774338692115,-604.29813131,0.00041369,120]
[408836761,1774338692125,-2348.54,0.00041369,120]
[408836762,1774338692134,-1104.3,0.00041369,120]
[408836763,1774338692143,-500.0,0.00041369,120]
[408836764,1774338692152,-639.98387332,0.00041369,120]
[408836765,1774338692161,-500.0,0.00041369,120]
[408836766,1774338692171,-500.0,0.00041369,60]
[408836767,1774338692180,-1021.53,0.00041369,120]
[408836768,1774338692190,-500.0,0.00041369,120]
[408836769,1774338692199,-541.43,0.00041369,120]
[408836770,1774338692208,-592.83,0.00041369,120]
[408836771,1774338692217,-500.0,0.00041369,120]
[408836772,1774338692227,-500.0,0.00041369,120]
[408836773,1774338692237,-535.0,0.00041369,120]
[408836774,1774338692246,-858.21,0.00041369,120]
[408836775,1774338692255,-500.0,0.00041369,120]
[408836776,1774338692264,-500.0,0.00041369,120]
[408836777,1774338692274,-1539.96,0.00041369,120]
[408836778,1774338692283,-500.0,0.00041369,120]
[408836779,1774338692293,-500.0,0.00041369,2]
[408836780,1774338692303,-500.0,0.00041369,120]
[408836781,1774338692312,-519.74,0.00041369,120]
[408836782,1774338692322,-1598.49,0.00041369,120]
[408836783,1774338692332,-813.09,0.00041369,120]
[408836784,1774338692341,-2149.78,0.00041369,120]
[408836785,1774338692350,-500.0,0.00041369,120]
[408836786,1774338692360,-201.14947689,0.00041369,120]
[408836787,1774338692373,-513.33,0.00041369,120]
[408836788,1774338692383,-743.4779064,0.00041369,120]
[408836789,1774338692392,-500.0,0.00041369,120]
[408836790,1774338692403,-833.01,0.00041369,120]
[408836791,1774338692412,-500.0,0.00041369,120]
[408836792,1774338692422,-500.0,0.00041369,120]
[408836793,1774338692431,-500.0,0.00041369,120]
[408836794,1774338692442,-656.49,0.00041369,120]
[408836795,1774338692451,-500.0,0.00041369,120]
[408836796,1774338692461,-700.59,0.00041369,120]
[408836797,1774338692471,-500.0,0.00041369,120]
[408836798,1774338692480,-381.40160435,0.00041369,120]
[408836799,1774338692490,-728.42,0.00041369,120]
[408836800,1774338692499,-500.0,0.00041369,120]
[408836801,1774338692508,-500.0,0.00041369,120]
[408836802,1774338692518,-500.0,0.00041369,120]
[408836803,1774338692527,-168.0,0.00041369,120]
[408836804,1774338692536,-500.0,0.00041369,120]
[408836805,1774338692546,-500.0,0.00041369,120]
[408836806,1774338692555,-500.0,0.00041369,120]
[408836807,1774338692564,-500.0,0.00041369,120]
[408836808,1774338692573,-500.0,0.00041369,120]
[408836809,1774338692583,-500.0,0.00041369,120]
[408836810,1774338692592,-957.25,0.00041369,120]
[408836811,1774338692601,-1844.33,0.00041369,120]
[408836812,1774338692611,-500.0,0.00041369,120]
[408836813,1774338692620,-1597.38,0.00041369,120]
[408836814,1774338692630,-500.0,0.00041369,16]
[408836815,1774338692639,-179.0,0.00041369,120]
[408836816,1774338692648,-2000.0,0.000414,2]
[408836817,1774338692657,-1569.0,0.00041406,11]
[408836818,1774338692666,-151.61244498,0.000415,30]
[408836819,1774338692676,-376.8238,0.000415,30]
[408836820,1774338692685,-226.92207526,0.000415,120]
[408836821,1774338692694,-157.86174124,0.000415,120]
[408836822,1774338692703,-159.14914422,0.000415,60]
[408836823,1774338692712,-226.05804549,0.000415,120]
[408836824,1774338692722,-217.60754725,0.000415,30]
[408836825,1774338692731,-157.6148476,0.000415,30]
[408836826,1774338692740,-1254.735,0.0004161,2]
[408836827,1774338692749,-2735.451747,0.00041642,60]
[408836828,1774338692758,-2735.45174699,0.00041642,60]
[408836829,1774338692768,-743.4779064,0.00041643,120]
[408836830,1774338692777,-590.67,0.00041643,120]
[408836831,1774338692786,-1000.0,0.00041643,120]
[408836832,1774338692796,-500.0,0.00041643,120]
[408836833,1774338692805,-389.90661128,0.00041643,120]
[408836834,1774338692814,-585.13598956,0.00041643,120]
[408836835,1774338692823,-500.0,0.00041643,120]
[408836836,1774338692833,-500.0,0.00041643,120]
[408836837,1774338692843,-500.0,0.00041643,120]
[408836838,1774338692853,-500.0,0.00041643,120]
[408836839,1774338692863,-500.0,0.00041643,120]
[408836840,1774338692872,-500.0,0.00041643,120]
[408836841,1774338692881,-500.0,0.00041643,120]
[408836842,1774338692891,-500.0,0.00041643,120]
[408836843,1774338692900,-500.0,0.00041643,120]
[408836844,1774338692910,-500.0,0.00041643,120]
[408836845,1774338692920,-500.0,0.00041643,120]
[408836846,1774338692929,-500.0,0.00041643,120]
[408836847,1774338692938,-500.0,0.00041643,120]
[408836848,1774338692948,-500.0,0.00041643,120]
[408836849,1774338692957,-500.0,0.00041643,120]
[408836850,1774338692966,-500.0,0.00041643,120]
[408836851,1774338692975,-500.0,0.00041643,120]
[408836852,1774338692984,-579.57219134,0.00041643,120]
[408836853,1774338692993,-500.0,0.00041643,120]
[408836854,1774338693003,-500.0,0.00041643,120]
[408836855,1774338693012,-500.0,0.00041643,120]
[408836856,1774338693021,-500.0,0.00041643,120]
[408836857,1774338693031,-500.0,0.00041643,120]
[408836858,1774338693040,-500.0,0.00041643,120]
[408836859,1774338693050,-194.83015125,0.00041643,120]
[408836860,1774338693059,-500.0,0.00041643,120]
[408836861,1774338693068,-500.0,0.00041643,120]
[408836862,1774338693079,-158.92721701,0.00041643,120]
[408836863,1774338693090,-500.0,0.00041643,120]
[408836864,1774338693101,-705.66,0.00041643,120]
[408836865,1774338693110,-500.0,0.00041643,120]
[408836866,1774338693120,-500.0,0.00041643,120]
[408836867,1774338693129,-943.74,0.00041643,120]
[408836868,1774338693138,-500.0,0.00041643,120]
[408836869,1774338693147,-500.0,0.00041643,120]
[408836870,1774338693156,-500.0,0.00041643,120]
[408836871,1774338693165,-500.0,0.00041643,120]
[408836872,1774338693174,-547.04166623,0.00041643,120]
[408836873,1774338693183,-507.3,0.00041643,120]
[408836874,1774338693192,-500.0,0.00041643,120]
[408836875,1774338693202,-568.39,0.00041643,120]
[408836876,1774338693211,-500.0,0.00041643,120]
[408836877,1774338693219,-729.64,0.00041643,120]
[408836878,1774338693228,-500.0,0.00041643,120]
[408836879,1774338693238,-639.9,0.00041643,120]
[408836880,1774338693247,-500.0,0.00041643,120]
[408836881,1774338693256,-500.0,0.00041643,120]
[408836882,1774338693265,-407.00410742,0.00041643,120]
[408836883,1774338693274,-500.0,0.00041643,14]
[408836884,1774338693283,-500.0,0.00041643,120]
[408836885,1774338693293,-500.0,0.00041643,30]
[408836886,1774338693304,-651.21,0.00041643,120]
[408836887,1774338693313,-500.0,0.00041643,120]
[408836888,1774338693323,-500.0,0.00041643,120]
[408836889,1774338693334,-500.0,0.00041643,120]
[408836890,1774338693343,-524.6,0.00041643,120]
[408836891,1774338693355,-978.66,0.00041643,120]
[408836892,1774338693369,-500.0,0.00041643,120]
[408836893,1774338693378,-500.0,0.00041643,30]
[408836894,1774338693387,-1180.13,0.00041643,120]
[408836895,1774338693396,-500.0,0.00041643,120]
[408836896,1774338693407,-574.37,0.00041643,120]
[408836897,1774338693416,-500.0,0.00041643,120]
[408836898,1774338693424,-1281.45,0.00041643,120]
[408836899,1774338693434,-500.0,0.00041643,120]
[408836900,1774338693445,-1329.75,0.00041643,120]
[408836901,1774338693454,-500.0,0.00041643,120]
[408836902,1774338693463,-500.0,0.00041643,120]
[408836903,1774338693472,-172.45483429,0.00041643,120]
[408836904,1774338693481,-500.0,0.00041643,90]
[408836905,1774338693490,-500.0,0.00041643,120]
[408836906,1774338693499,-500.0,0.00041643,120]
[408836907,1774338693508,-500.0,0.00041643,120]
[408836908,1774338693517,-500.0,0.00041643,120]
[408836909,1774338693526,-613.45594594,0.00041643,120]
[408836910,1774338693534,-500.0,0.00041643,120]
[408836911,1774338693543,-880.66,0.00041643,5]
[408836912,1774338693552,-599.98,0.00041643,120]
[408836913,1774338693562,-1076.85,0.00041643,120]
[408836914,1774338693571,-651.22,0.00041643,120]
[408836915,1774338693580,-500.0,0.00041643,120]
[408836916,1774338693591,-500.0,0.00041643,120]
[408836917,1774338693602,-500.0,0.00041643,120]
[408836918,1774338693611,-539.9,0.00041643,120]
[408836919,1774338693620,-501.8633834,0.00041643,120]
[408836920,1774338693629,-604.85,0.00041643,120]
[408836921,1774338693638,-617.48,0.00041643,120]
[408836922,1774338693647,-500.0,0.00041643,120]
[408836923,1774338693656,-766.13,0.00041643,120]
[408836924,1774338693665,-500.0,0.00041643,120]
[408836925,1774338693674,-835.56,0.00041643,120]
[408836926,1774338693683,-792.41,0.00041643,120]
[408836927,1774338693693,-169.25585684,0.00041643,120]
[408836928,1774338693702,-500.0,0.00041643,120]
[408836929,1774338693711,-500.0,0.00041643,120]
[408836930,1774338693720,-500.0,0.00041643,120]
[408836931,1774338693729,-500.0,0.00041643,120]
[408836932,1774338693738,-500.0,0.00041643,120]
[408836933,1774338693747,-500.0,0.00041643,120]
[408836934,1774338693755,-500.0,0.00041643,120]
[408836935,1774338693764,-500.0,0.00041643,120]
[408836936,1774338693774,-500.0,0.00041643,120]
[408836937,1774338693783,-500.0,0.00041643,120]
[408836938,1774338693791,-500.0,0.00041643,120]
[408836939,1774338693800,-1234.56,0.00041643,120]
[408836940,1774338693810,-500.0,0.00041643,120]
[408836941,1774338693818,-890.18,0.00041643,120]
[408836942,1774338693827,-500.0,0.00041643,120]
[408836943,1774338693837,-609.71941836,0.00041643,120]
[408836944,1774338693846,-500.0,0.00041643,120]
[408836945,1774338693856,-500.0,0.00041643,120]
[408836946,1774338693865,-1024.48,0.00041643,120]
[408836947,1774338693874,-500.0,0.00041643,120]
[408836948,1774338693883,-500.0,0.00041643,120]
[408836949,1774338693892,-500.0,0.00041643,120]
[408836950,1774338693901,-321.24822771,0.00041643,120]
[408836951,1774338693910,-500.0,0.00041643,120]
[408836952,1774338693920,-500.0,0.00041643,120]
[408836953,1774338693929,-500.0,0.00041643,120]
[408836954,1774338693937,-439.88324434,0.00041643,120]
[408836955,1774338693947,-500.0,0.00041643,120]
[408836956,1774338693955,-500.0,0.00041643,120]
[408836957,1774338693964,-500.0,0.00041643,120]
[408836958,1774338693974,-2135.18,0.00041643,120]
[408836959,1774338693983,-233.22375873,0.00041643,120]
[408836960,1774338693994,-766.51,0.00041643,120]
[408836961,1774338694003,-500.0,0.00041643,120]
[408836962,1774338694012,-500.0,0.00041643,120]
[408836963,1774338694021,-677.14,0.00041643,120]
[408836964,1774338694031,-500.0,0.00041643,120]
[408836965,1774338694041,-563.34,0.00041643,120]
[408836966,1774338694050,-500.0,0.00041643,120]
[408836967,1774338694059,-1402.94,0.00041643,120]
[408836968,1774338694068,-761.77,0.00041643,120]
[408836969,1774338694077,-500.0,0.00041643,120]
[408836970,1774338694085,-1465.28,0.00041643,120]
[408836971,1774338694094,-500.0,0.00041643,120]
[408836972,1774338694105,-500.0,0.00041643,120]
[408836973,1774338694114,-500.0,0.00041643,120]
[408836974,1774338694123,-500.0,0.00041643,120]
[408836975,1774338694132,-500.0,0.00041643,120]
[408836976,1774338694141,-500.0,0.00041643,120]
[408836977,1774338694150,-500.0,0.00041643,120]
[408836978,1774338694159,-598.21,0.00041643,120]
[408836979,1774338694168,-500.0,0.00041643,120]
[408836980,1774338694178,-500.0,0.00041643,120]
[408836981,1774338694187,-500.0,0.00041643,120]
[408836982,1774338694196,-1412.93,0.00041643,120]
[408836983,1774338694205,-432.8827586,0.00041643,120]
[408836984,1774338694214,-500.0,0.00041643,120]
[408836985,1774338694224,-471.45270355,0.00041643,120]
[408836986,1774338694232,-500.0,0.00041643,120]
[408836987,1774338694242,-500.0,0.00041643,120]
[408836988,1774338694251,-500.0,0.00041643,120]
[408836989,1774338694260,-500.0,0.00041643,7]
[408836990,1774338694269,-500.0,0.00041643,120]
[408836991,1774338694278,-500.0,0.00041643,120]
[408836992,1774338694288,-500.0,0.00041643,120]